[Event "Slovakia Open Piestany-A 2022"]
[Site "Piestany"]
[Date "2022.07.12"]
[Round "2.14"]
[White "Moksh Amit Doshi"]
[Black "Tripodi, Enzo"]
[Result "1-0"]
[ECO "E07"]
[WhiteElo "2409"]
[BlackElo "2141"]
[Annotator "ChessBase"]
[PlyCount "69"]
[EventDate "2022.07.12"]
[EventType "swiss"]
[EventCountry "SVK"]
[SourceTitle "playchess.com"]
[Source "ChessBase"]
[SourceQuality "1"]
[TimeControl "40/5400+30:1800+30"]

1. d4 {[%emt 0:05:12]} Nf6 {[%emt 0:00:09]} 2. c4 {[%emt 0:00:15]} e6 {[%emt 0:00:05]} 3. g3 {[%emt 0:00:30]} d5 {[%emt 0:00:42]} 4. Nf3 {[%emt 0:00:41]} Be7 {[%emt 0:01:53]} 5. Bg2 {[%emt 0:00:33]} O-O {[%emt 0:00:07]} 6. O-O {[%emt 0:00:08]} c6 {[%emt 0:00:22]} 7. Nc3 {[%emt 0:02:00]} Nbd7 {[%emt 0:02:33]} 8. b3 {[%emt 0:00:29]} Re8 {[%emt 0:01:58]} 9. Qc2 {[%emt 0:01:51]} Bd6 {[%emt 0:05:30]} 10. Rd1 {[%emt 0:04:22]} Qe7 {[%emt 0:04:16]} 11. Bb2 {[%emt 0:01:36]} dxc4 {[%emt 0:10:23]} 12. bxc4 {[%emt 0:02:31]} e5 {[%emt 0:00:12]} 13. e4 {[%emt 0:03:02]} exd4 {[%emt 0:01:49]} 14. Nxd4 {[%emt 0:00:09]} Ne5 {[%emt 0:09:19]} 15. Qb3 {[%emt 0:00:57]} Bg4 {[%emt 0:02:08]} 16. f3 {[%emt 0:02:31]} Be6 {[%emt 0:01:36]} 17. Nxe6 {[%emt 0:13:46]} Qxe6 {[%emt 0:00:14]} 18. Na4 {[%emt 0:03:00]} Nxc4 {[%emt 0:16:14]} 19. Bxf6 {[%emt 0:00:49]} gxf6 {[%emt 0:00:19]} 20. Qxb7 {[%emt 0:00:09]} Ne3 {[%emt 0:00:17]} 21. Rd2 {[%emt 0:01:22]} Be5 {[%emt 0:06:19]} 22. Rc1 {[%emt 0:02:32]} Rad8 {[%emt 0:01:31]} 23. Re2 {[%emt 0:01:57]} Rd1+ {[%emt 0:16:27]} 24. Rxd1 {[%emt 0:00:08]} Nxd1 {[%emt 0:00:03]} 25. Rd2 {[%emt 0:00:58]} Qc4 {[%emt 0:01:11]} 26. Rxd1 {[%emt 0:03:53]} Qxa4 {[%emt 0:00:01]} 27. Qd7 {[%emt 0:00:45]} Rb8 {[%emt 0:03:27]} 28. f4 {[%emt 0:00:56]} Bc3 {[%emt 0:01:25]} 29. h4 {[%emt 0:03:53]} Qxa2 {[%emt 0:01:32]} 30. Qxc6 {[%emt 0:02:44]} Qe2 {[%emt 0:03:50]} 31. Rf1 {[%emt 0:04:52]} Bd4+ {[%emt 0:02:17]} 32. Kh1 {[%emt 0:01:06]} Qe3 {[%emt 0:01:57]} 33. Qd7 {[%emt 0:02:33]} Rb3 {[%emt 0:01:19]} 34. e5 {[%emt 0:04:07]} Rd3 {[%emt 0:01:19]} 35. Bd5 {[%emt 0:00:37]} 1-0

[Event "Slovakia Open Piestany-A 2022"]
[Site "Piestany"]
[Date "2022.07.12"]
[Round "2.15"]
[White "Travnicek, Krystof Mikulas"]
[Black "Krasenkow, Michal"]
[Result "1/2-1/2"]
[ECO "B07"]
[WhiteElo "2138"]
[BlackElo "2569"]
[Annotator "ChessBase"]
[PlyCount "111"]
[EventDate "2022.07.12"]
[EventType "swiss"]
[EventCountry "SVK"]
[SourceTitle "playchess.com"]
[Source "ChessBase"]
[SourceQuality "1"]
[TimeControl "40/5400+30:1800+30"]

1. e4 {[%emt 0:00:09]} d6 {[%emt 0:00:15]} 2. d4 {[%emt 0:00:22]} Nf6 {[%emt 0:00:05]} 3. Nc3 {[%emt 0:00:41]} c6 {[%emt 0:00:05]} 4. f4 {[%emt 0:02:13]} Qa5 {[%emt 0:00:07]} 5. e5 {[%emt 0:02:13]} Ne4 {[%emt 0:00:16]} 6. Qf3 {[%emt 0:01:05]} Nxc3 {[%emt 0:02:34]} 7. Bd2 {[%emt 0:03:05]} Bf5 {[%emt 0:00:51]} 8. Bd3 {[%emt 0:05:27]} Bxd3 {[%emt 0:01:35]} 9. cxd3 {[%emt 0:01:30]} Qd5 {[%emt 0:11:23]} 10. bxc3 {[%emt 0:02:25]} Qxf3 {[%emt 0:00:06]} 11. Nxf3 {[%emt 0:00:28]} e6 {[%emt 0:00:23]} 12. Ke2 {[%emt 0:05:19]} Na6 {[%emt 0:01:59]} 13. Rab1 {[%emt 0:06:27]} O-O-O {[%emt 0:00:24]} 14. Ng5 {[%emt 0:07:03]} Rd7 {[%emt 0:00:15]} 15. g4 {[%emt 0:02:36]} h6 {[%emt 0:05:18]} 16. Ne4 {[%emt 0:05:05]} c5 {[%emt 0:03:25]} 17. Be3 {[%emt 0:08:11]} cxd4 {[%emt 0:04:39]} 18. Bxd4 {[%emt 0:01:09]} d5 {[%emt 0:00:14]} 19. Nd2 {[%emt 0:06:13]} Kb8 {[%emt 0:01:22]} 20. f5 {[%emt 0:07:09]} Bc5 {[%emt 0:04:54]} 21. fxe6 {[%emt 0:05:00]} fxe6 {[%emt 0:00:09]} 22. Nb3 {[%emt 0:02:43]} Rc8 {[%emt 0:02:44]} 23. Kd2 {[%emt 0:02:19]} Rdc7 {[%emt 0:01:38]} 24. Bxc5 {[%emt 0:08:27]} Nxc5 {[%emt 0:00:37]} 25. Nd4 {[%emt 0:00:36]} Na4 {[%emt 0:06:09]} 26. Nxe6 {[%emt 0:01:33]} Rxc3 {[%emt 0:01:13]} 27. Rhc1 {[%emt 0:04:28]} g5 {[%emt 0:15:16]} 28. Nd4 {[%emt 0:02:08]} Ra3 {[%emt 0:11:16]} 29. Nc6+ {[%emt 0:02:50]} Ka8 {[%emt 0:00:02]} 30. Nb4 {[%emt 0:00:23]} Re8 {[%emt 0:03:00]} 31. Rb3 {[%emt 0:03:24]} Rxb3 {[%emt 0:00:16]} 32. axb3 {[%emt 0:00:02]} Nb6 {[%emt 0:00:06]} 33. d4 {[%emt 0:00:47]} Rf8 {[%emt 0:00:27]} 34. Nd3 {[%emt 0:00:47]} Kb8 {[%emt 0:01:54]} 35. Ke2 {[%emt 0:01:58]} Rf7 {[%emt 0:07:53]} 36. h4 {[%emt 0:00:48]} gxh4 {[%emt 0:00:52]} 37. Rh1 {[%emt 0:00:11]} Nc8 {[%emt 0:01:43]} 38. Rxh4 {[%emt 0:00:21]} Rg7 {[%emt 0:00:25]} 39. Nf4 {[%emt 0:00:35]} Ne7 {[%emt 0:00:15]} 40. Kf3 {[%emt 0:01:12]} Nc6 {[%emt 0:01:42]} 41. Nxd5 {[%emt 0:09:56]} Nxd4+ {[%emt 0:00:34]} 42. Ke4 {[%emt 0:00:41]} Nxb3 {[%emt 0:05:11]} 43. Rxh6 {[%emt 0:07:15]} Rxg4+ {[%emt 0:00:39]} 44. Kf5 {[%emt 0:00:20]} Rg8 {[%emt 0:00:08]} 45. e6 {[%emt 0:03:08]} Nd4+ {[%emt 0:01:53]} 46. Kf6 {[%emt 0:02:07]} Nxe6 {[%emt 0:00:35]} 47. Kxe6 {[%emt 0:00:09]} a5 {[%emt 0:01:04]} 48. Kd6 {[%emt 0:04:22]} Rc8 {[%emt 0:00:33]} 49. Rh3 {[%emt 0:01:02]} Rc6+ {[%emt 0:01:03]} 50. Ke5 {[%emt 0:00:39]} Ka7 {[%emt 0:00:20]} 51. Ra3 {[%emt 0:00:44]} b6 {[%emt 0:01:22]} 52. Kd4 {[%emt 0:00:40]} Rh6 {[%emt 0:00:29]} 53. Rb3 {[%emt 0:00:36]} Kb7 {[%emt 0:00:26]} 54. Rxb6+ {[%emt 0:00:15]} Rxb6 {[%emt 0:00:07]} 55. Nxb6 {[%emt 0:00:07]} Kxb6 {[%emt 0:00:07]} 56. Kc4 {[%emt 0:00:07]} 1/2-1/2

[Event "Slovakia Open Piestany-A 2022"]
[Site "Piestany"]
[Date "2022.07.12"]
[Round "2.16"]
[White "Balint, Peter"]
[Black "Lewtak, Damian"]
[Result "0-1"]
[ECO "B29"]
[WhiteElo "2051"]
[BlackElo "2397"]
[Annotator "ChessBase"]
[PlyCount "96"]
[EventDate "2022.07.12"]
[EventType "swiss"]
[EventCountry "SVK"]
[SourceTitle "playchess.com"]
[Source "ChessBase"]
[SourceQuality "1"]
[TimeControl "40/5400+30:1800+30"]

1. e4 {[%emt 0:00:03]} c5 {[%emt 0:00:05]} 2. Nf3 {[%emt 0:00:04]} Nf6 {[%emt 0:00:08]} 3. Nc3 {[%emt 0:00:05]} Nc6 {[%emt 0:00:16]} 4. d4 {[%emt 0:00:03]} d5 {[%emt 0:00:19]} 5. exd5 {[%emt 0:00:22]} Nxd5 {[%emt 0:00:06]} 6. Nxd5 {[%emt 0:00:13]} Qxd5 {[%emt 0:00:06]} 7. Be3 {[%emt 0:00:49]} cxd4 {[%emt 0:01:02]} 8. Nxd4 {[%emt 0:00:06]} Nxd4 {[%emt 0:02:03]} 9. Qxd4 {[%emt 0:05:58]} Qxd4 {[%emt 0:00:27]} 10. Bxd4 {[%emt 0:00:04]} Bd7 {[%emt 0:00:06]} 11. O-O-O {[%emt 0:01:11]} h5 {[%emt 0:07:07]} 12. Bc4 {[%emt 0:05:24]} Bc6 {[%emt 0:03:38]} 13. f3 {[%emt 0:23:02]} h4 {[%emt 0:03:01]} 14. h3 {[%emt 0:02:37]} e6 {[%emt 0:05:21]} 15. Rhe1 {[%emt 0:04:52]} Be7 {[%emt 0:04:19]} 16. Re2 {[%emt 0:01:49]} Bg5+ {[%emt 0:04:37]} 17. Kb1 {[%emt 0:00:19]} Bf6 {[%emt 0:03:25]} 18. Be3 {[%emt 0:04:36]} Rh5 {[%emt 0:03:50]} 19. Bd3 {[%emt 0:11:19]} a5 {[%emt 0:06:45]} 20. Bb6 {[%emt 0:01:31]} Rd5 {[%emt 0:03:44]} 21. c4 {[%emt 0:05:49]} Rd6 {[%emt 0:04:13]} 22. Kc2 {[%emt 0:01:57]} Ba4+ {[%emt 0:04:34]} 23. b3 {[%emt 0:01:30]} Bxb3+ {[%emt 0:00:08]} 24. axb3 {[%emt 0:00:24]} Rxb6 {[%emt 0:00:06]} 25. Re4 {[%emt 0:04:50]} a4 {[%emt 0:01:58]} 26. Rb1 {[%emt 0:08:21]} axb3+ {[%emt 0:00:08]} 27. Kd1 {[%emt 0:00:03]} b2 {[%emt 0:04:45]} 28. c5 {[%emt 0:03:04]} Rb3 {[%emt 0:00:09]} 29. Bc2 {[%emt 0:00:56]} Ra1 {[%emt 0:03:11]} 30. Rc4 {[%emt 0:01:25]} Rxb1+ {[%emt 0:02:46]} 31. Bxb1 {[%emt 0:00:08]} Kd7 {[%emt 0:00:39]} 32. Kc2 {[%emt 0:00:29]} Ra3 {[%emt 0:00:07]} 33. Rb4 {[%emt 0:04:09]} Kc7 {[%emt 0:00:35]} 34. Rb5 {[%emt 0:02:47]} Ra1 {[%emt 0:04:18]} 35. Rb4 {[%emt 0:01:47]} Ra5 {[%emt 0:00:30]} 36. Rc4 {[%emt 0:00:37]} Kc6 {[%emt 0:00:13]} 37. Kd3 {[%emt 0:01:29]} Ra1 {[%emt 0:00:54]} 38. Kc2 {[%emt 0:00:37]} Kb5 {[%emt 0:00:08]} 39. Re4 {[%emt 0:00:15]} Kxc5 {[%emt 0:00:16]} 40. Re3 {[%emt 0:00:52]} Ra4 {[%emt 0:00:35]} 41. Re4 {[%emt 0:07:12]} Ra7 {[%emt 0:01:15]} 42. Kb3 {[%emt 0:02:22]} b5 {[%emt 0:00:12]} 43. Kc2 {[%emt 0:00:29]} b4 {[%emt 0:01:30]} 44. Re3 {[%emt 0:01:01]} Kb5 {[%emt 0:01:36]} 45. Re1 {[%emt 0:01:12]} Rc7+ {[%emt 0:00:16]} 46. Kd3 {[%emt 0:00:11]} Rc1 {[%emt 0:00:39]} 47. Ke2 {[%emt 0:00:03]} Ka4 {[%emt 0:00:35]} 48. Rd1 {[%emt 0:00:10]} Rxb1 {[%emt 0:00:14]} 0-1

[Event "Slovakia Open Piestany-A 2022"]
[Site "Piestany"]
[Date "2022.07.12"]
[Round "2.17"]
[White "Farkas, Gabor"]
[Black "Drtina, Milan"]
[Result "1-0"]
[ECO "C50"]
[WhiteElo "2335"]
[BlackElo "2167"]
[Annotator "ChessBase"]
[PlyCount "86"]
[EventDate "2022.07.12"]
[EventType "swiss"]
[EventCountry "SVK"]
[SourceTitle "playchess.com"]
[Source "ChessBase"]
[SourceQuality "1"]
[TimeControl "40/5400+30:1800+30"]

1. e4 {[%emt 0:19:06]} e5 {[%emt 0:00:30]} 2. Nf3 {[%emt 0:00:07]} Nc6 {[%emt 0:00:32]} 3. Bc4 {[%emt 0:00:31]} Be7 {[%emt 0:00:30]} 4. d4 {[%emt 0:00:42]} exd4 {[%emt 0:02:16]} 5. c3 {[%emt 0:00:06]} dxc3 {[%emt 0:05:55]} 6. Qd5 {[%emt 0:05:32]} Nh6 {[%emt 0:00:11]} 7. Bxh6 {[%emt 0:00:06]} O-O {[%emt 0:00:08]} 8. Bxg7 {[%emt 0:00:03]} Kxg7 {[%emt 0:04:06]} 9. Nxc3 {[%emt 0:01:15]} d6 {[%emt 0:00:13]} 10. Qh5 {[%emt 0:05:09]} Bf6 {[%emt 0:09:10]} 11. O-O {[%emt 0:01:58]} Bxc3 {[%emt 0:00:49]} 12. bxc3 {[%emt 0:00:39]} Qf6 {[%emt 0:00:16]} 13. Rab1 {[%emt 0:08:52]} Ne5 {[%emt 0:12:55]} 14. Nxe5 {[%emt 0:01:10]} Qxe5 {[%emt 0:00:11]} 15. Qf3 {[%emt 0:10:13]} c6 {[%emt 0:04:55]} 16. Qe3 {[%emt 0:05:53]} b5 {[%emt 0:06:17]} 17. f4 {[%emt 0:02:31]} Qc5 {[%emt 0:08:12]} 18. Qxc5 {[%emt 0:00:06]} dxc5 {[%emt 0:00:09]} 19. Bb3 {[%emt 0:01:00]} Re8 {[%emt 0:04:43]} 20. Rbe1 {[%emt 0:05:41]} a5 {[%emt 0:07:02]} 21. f5 {[%emt 0:06:49]} f6 {[%emt 0:02:20]} 22. Rf4 {[%emt 0:00:40]} c4 {[%emt 0:02:23]} 23. Bc2 {[%emt 0:00:54]} Ra7 {[%emt 0:06:01]} 24. Rg4+ {[%emt 0:06:30]} Kh8 {[%emt 0:01:24]} 25. h4 {[%emt 0:03:04]} Rae7 {[%emt 0:04:37]} 26. Rf4 {[%emt 0:01:15]} c5 {[%emt 0:00:55]} 27. g4 {[%emt 0:00:32]} h6 {[%emt 0:01:05]} 28. Kf2 {[%emt 0:00:54]} Rd8 {[%emt 0:01:54]} 29. Ke3 {[%emt 0:00:47]} Red7 {[%emt 0:00:46]} 30. Rf2 {[%emt 0:00:24]} b4 {[%emt 0:00:48]} 31. g5 {[%emt 0:00:55]} hxg5 {[%emt 0:04:42]} 32. hxg5 {[%emt 0:02:07]} fxg5 {[%emt 0:01:11]} 33. Rh1+ {[%emt 0:00:43]} Rh7 {[%emt 0:00:28]} 34. Rxh7+ {[%emt 0:00:09]} Kxh7 {[%emt 0:00:10]} 35. e5 {[%emt 0:01:16]} Rd5 {[%emt 0:05:12]} 36. f6+ {[%emt 0:05:38]} Kg8 {[%emt 0:00:09]} 37. Ke4 {[%emt 0:00:04]} Be6 {[%emt 0:02:49]} 38. Rg2 {[%emt 0:03:41]} Kf8 {[%emt 0:00:10]} 39. Ba4 {[%emt 0:00:52]} g4 {[%emt 0:00:17]} 40. Rh2 {[%emt 0:01:47]} g3 {[%emt 0:00:52]} 41. Rh8+ {[%emt 0:30:21]} Bg8 {[%emt 0:30:49]} 42. e6 {[%emt 0:00:43]} Rg5 {[%emt 0:00:16]} 43. e7+ {[%emt 0:00:14]} Kf7 {[%emt 0:00:18]} 1-0

[Event "Slovakia Open Piestany-A 2022"]
[Site "Piestany"]
[Date "2022.07.12"]
[Round "2.18"]
[White "Mullick, Raahil"]
[Black "Dixit, Nikhil"]
[Result "1/2-1/2"]
[ECO "C11"]
[WhiteElo "2237"]
[BlackElo "2325"]
[Annotator "ChessBase"]
[PlyCount "89"]
[EventDate "2022.07.12"]
[EventType "swiss"]
[EventCountry "SVK"]
[SourceTitle "playchess.com"]
[Source "ChessBase"]
[SourceQuality "1"]
[TimeControl "40/5400+30:1800+30"]

1. e4 {[%emt 0:00:05]} e6 {[%emt 0:00:38]} 2. d4 {[%emt 0:00:08]} d5 {[%emt 0:00:05]} 3. Nc3 {[%emt 0:00:22]} Nf6 {[%emt 0:00:09]} 4. e5 {[%emt 0:00:04]} Nfd7 {[%emt 0:00:04]} 5. f4 {[%emt 0:00:05]} c5 {[%emt 0:00:04]} 6. Nf3 {[%emt 0:00:03]} Nc6 {[%emt 0:00:04]} 7. Be3 {[%emt 0:00:04]} a6 {[%emt 0:00:25]} 8. Qd2 {[%emt 0:00:08]} b5 {[%emt 0:00:25]} 9. a3 {[%emt 0:00:04]} Qa5 {[%emt 0:04:32]} 10. dxc5 {[%emt 0:06:17]} Bxc5 {[%emt 0:01:09]} 11. Bxc5 {[%emt 0:00:07]} Nxc5 {[%emt 0:00:08]} 12. Nd4 {[%emt 0:00:02]} Qb6 {[%emt 0:05:43]} 13. Nxc6 {[%emt 0:00:08]} Qxc6 {[%emt 0:00:06]} 14. h4 {[%emt 0:00:10]} Bb7 {[%emt 0:13:25]} 15. Rh3 {[%emt 0:29:54]} O-O {[%emt 0:14:46]} 16. O-O-O {[%emt 0:02:54]} Qb6 {[%emt 0:14:43]} 17. Qd4 {[%emt 0:09:28]} Rfc8 {[%emt 0:02:33]} 18. h5 {[%emt 0:04:00]} Bc6 {[%emt 0:04:08]} 19. f5 {[%emt 0:05:40]} Nd7 {[%emt 0:06:08]} 20. fxe6 {[%emt 0:11:29]} fxe6 {[%emt 0:00:36]} 21. Qg4 {[%emt 0:00:36]} Re8 {[%emt 0:06:39]} 22. h6 {[%emt 0:02:52]} g6 {[%emt 0:00:56]} 23. Qg5 {[%emt 0:20:26]} Qd8 {[%emt 0:04:14]} 24. Qe3 {[%emt 0:00:13]} Qb8 {[%emt 0:07:56]} 25. Rh5 {[%emt 0:03:21]} Rf8 {[%emt 0:02:12]} 26. Rg5 {[%emt 0:00:45]} Qa7 {[%emt 0:03:46]} 27. Qg3 {[%emt 0:01:22]} Kh8 {[%emt 0:00:32]} 28. Ne2 {[%emt 0:01:42]} Nc5 {[%emt 0:00:41]} 29. Nc3 {[%emt 0:00:55]} Rab8 {[%emt 0:00:58]} 30. b4 {[%emt 0:00:58]} Ne4 {[%emt 0:01:09]} 31. Nxe4 {[%emt 0:00:01]} dxe4 {[%emt 0:00:02]} 32. Rg4 {[%emt 0:01:26]} a5 {[%emt 0:00:35]} 33. Qc3 {[%emt 0:00:30]} Rbc8 {[%emt 0:00:29]} 34. Rg3 {[%emt 0:00:30]} Bd5 {[%emt 0:00:32]} 35. Qe3 {[%emt 0:00:33]} Qc7 {[%emt 0:00:26]} 36. c3 {[%emt 0:00:31]} axb4 {[%emt 0:00:30]} 37. axb4 {[%emt 0:00:00]} Ra8 {[%emt 0:00:17]} 38. Bxb5 {[%emt 0:00:44]} Ra2 {[%emt 0:00:45]} 39. Rd2 {[%emt 0:00:35]} Ra1+ {[%emt 0:00:36]} 40. Kb2 {[%emt 0:00:01]} Rfa8 {[%emt 0:00:45]} 41. Rxd5 {[%emt 0:30:42]} exd5 {[%emt 0:35:34]} 42. Qd4 {[%emt 0:00:31]} R8a2+ {[%emt 0:00:00]} 43. Kb3 {[%emt 0:00:00]} Ra3+ {[%emt 0:00:00]} 44. Kb2 {[%emt 0:00:00]} R3a2+ {[%emt 0:00:00]} 45. Kb3 {[%emt 0:00:00]} 1/2-1/2

[Event "Slovakia Open Piestany-A 2022"]
[Site "Piestany"]
[Date "2022.07.12"]
[Round "2.19"]
[White "Neugebauer, Martin"]
[Black "Compel, Daniel"]
[Result "1-0"]
[ECO "B70"]
[WhiteElo "2528"]
[BlackElo "2098"]
[Annotator "ChessBase"]
[PlyCount "71"]
[EventDate "2022.07.12"]
[EventType "swiss"]
[EventCountry "SVK"]
[SourceTitle "playchess.com"]
[Source "ChessBase"]
[SourceQuality "1"]
[TimeControl "40/5400+30:1800+30"]

1. e4 {[%emt 0:03:15]} c5 {[%emt 0:00:05]} 2. Nc3 {[%emt 0:00:25]} a6 {[%emt 0:00:07]} 3. Nge2 {[%emt 0:00:33]} d6 {[%emt 0:00:49]} 4. g3 {[%emt 0:01:38]} g6 {[%emt 0:00:21]} 5. Bg2 {[%emt 0:00:35]} Bg7 {[%emt 0:00:05]} 6. d4 {[%emt 0:01:13]} cxd4 {[%emt 0:00:11]} 7. Nxd4 {[%emt 0:00:04]} Nf6 {[%emt 0:01:33]} 8. O-O {[%emt 0:00:16]} O-O {[%emt 0:00:05]} 9. h3 {[%emt 0:00:42]} Bd7 {[%emt 0:03:35]} 10. Nde2 {[%emt 0:04:38]} Nc6 {[%emt 0:00:55]} 11. a4 {[%emt 0:01:41]} Rc8 {[%emt 0:00:26]} 12. Be3 {[%emt 0:01:43]} Qc7 {[%emt 0:04:43]} 13. Nd5 {[%emt 0:04:56]} Nxd5 {[%emt 0:01:24]} 14. exd5 {[%emt 0:00:04]} Na5 {[%emt 0:02:32]} 15. c3 {[%emt 0:01:35]} Nc4 {[%emt 0:03:21]} 16. Bc1 {[%emt 0:00:06]} b5 {[%emt 0:01:08]} 17. axb5 {[%emt 0:06:46]} axb5 {[%emt 0:00:22]} 18. b3 {[%emt 0:05:48]} Nb6 {[%emt 0:04:08]} 19. Be3 {[%emt 0:02:46]} Ra8 {[%emt 0:03:03]} 20. Rc1 {[%emt 0:00:48]} Ra3 {[%emt 0:03:57]} 21. Nd4 {[%emt 0:01:21]} Rc8 {[%emt 0:08:51]} 22. Re1 {[%emt 0:03:42]} Bf6 {[%emt 0:02:35]} 23. Qd2 {[%emt 0:02:02]} Re8 {[%emt 0:09:28]} 24. h4 {[%emt 0:04:22]} h5 {[%emt 0:00:58]} 25. Bg5 {[%emt 0:02:00]} Be5 {[%emt 0:01:01]} 26. Qd3 {[%emt 0:05:42]} Qc5 {[%emt 0:01:13]} 27. Ne6 {[%emt 0:06:07]} Bxe6 {[%emt 0:02:05]} 28. dxe6 {[%emt 0:00:05]} f5 {[%emt 0:02:11]} 29. Be3 {[%emt 0:00:53]} Qc7 {[%emt 0:00:10]} 30. Qxb5 {[%emt 0:03:03]} Rb8 {[%emt 0:01:24]} 31. Ra1 {[%emt 0:07:51]} Qa7 {[%emt 0:16:20]} 32. Rxa3 {[%emt 0:01:21]} Qxa3 {[%emt 0:00:05]} 33. Bxb6 {[%emt 0:04:22]} Bxc3 {[%emt 0:00:08]} 34. Rd1 {[%emt 0:00:16]} Ba5 {[%emt 0:05:12]} 35. Qxa5 {[%emt 0:01:28]} Qxb3 {[%emt 0:00:05]} 36. Rxd6 {[%emt 0:03:28]} 1-0

[Event "Slovakia Open Piestany-A 2022"]
[Site "Piestany"]
[Date "2022.07.12"]
[Round "2.20"]
[White "Pacher, Milan"]
[Black "Nadzamova, Viktoria"]
[Result "1/2-1/2"]
[ECO "E60"]
[WhiteElo "2399"]
[BlackElo "2133"]
[Annotator "ChessBase"]
[PlyCount "159"]
[EventDate "2022.07.12"]
[EventType "swiss"]
[EventCountry "SVK"]
[SourceTitle "playchess.com"]
[Source "ChessBase"]
[SourceQuality "1"]
[TimeControl "40/5400+30:1800+30"]

1. d4 {[%emt 0:00:06]} Nf6 {[%emt 0:02:46]} 2. c4 {[%emt 0:00:05]} g6 {[%emt 0:00:03]} 3. f3 {[%emt 0:00:06]} Bg7 {[%emt 0:05:07]} 4. e4 {[%emt 0:00:06]} e5 {[%emt 0:01:44]} 5. dxe5 {[%emt 0:03:40]} Nxe4 {[%emt 0:06:03]} 6. fxe4 {[%emt 0:00:35]} Qh4+ {[%emt 0:00:10]} 7. Kd2 {[%emt 0:00:28]} Qxe4 {[%emt 0:01:35]} 8. Nf3 {[%emt 0:01:25]} d5 {[%emt 0:29:20]} 9. exd6 {[%emt 0:07:11]} O-O {[%emt 0:05:57]} 10. Bd3 {[%emt 0:00:44]} Qg4 {[%emt 0:01:10]} 11. Qe2 {[%emt 0:00:43]} Nc6 {[%emt 0:02:57]} 12. Nc3 {[%emt 0:01:05]} Nb4 {[%emt 0:01:54]} 13. Re1 {[%emt 0:07:29]} Nxd3 {[%emt 0:06:19]} 14. Qxd3 {[%emt 0:00:04]} Bf5 {[%emt 0:00:27]} 15. Qe2 {[%emt 0:09:24]} Rad8 {[%emt 0:02:00]} 16. Kd1 {[%emt 0:05:05]} Rxd6+ {[%emt 0:02:04]} 17. Nd2 {[%emt 0:00:04]} Qh4 {[%emt 0:03:34]} 18. h3 {[%emt 0:01:54]} Rfd8 {[%emt 0:03:14]} 19. Nd5 {[%emt 0:01:49]} Re6 {[%emt 0:03:48]} 20. Ne3 {[%emt 0:01:55]} Bd3 {[%emt 0:04:54]} 21. Qf3 {[%emt 0:02:15]} Bd4 {[%emt 0:02:25]} 22. g4 {[%emt 0:02:33]} Qxe1+ {[%emt 0:07:12]} 23. Kxe1 {[%emt 0:00:02]} Rxe3+ {[%emt 0:00:01]} 24. Qxe3 {[%emt 0:00:10]} Bxe3 {[%emt 0:00:02]} 25. Nf3 {[%emt 0:00:11]} Bb6 {[%emt 0:01:35]} 26. Bg5 {[%emt 0:01:01]} Re8+ {[%emt 0:00:37]} 27. Kd2 {[%emt 0:00:03]} Be2 {[%emt 0:02:18]} 28. b4 {[%emt 0:01:27]} Bxc4 {[%emt 0:01:10]} 29. Bf6 {[%emt 0:00:43]} c5 {[%emt 0:01:55]} 30. Ne5 {[%emt 0:00:48]} Be6 {[%emt 0:00:10]} 31. a3 {[%emt 0:00:30]} Bd8 {[%emt 0:00:51]} 32. Bxd8 {[%emt 0:01:17]} Rxd8+ {[%emt 0:00:01]} 33. Kc3 {[%emt 0:00:24]} c4 {[%emt 0:00:47]} 34. Re1 {[%emt 0:01:14]} b5 {[%emt 0:00:40]} 35. Re3 {[%emt 0:00:45]} Kg7 {[%emt 0:01:02]} 36. Nc6 {[%emt 0:00:15]} Rd7 {[%emt 0:01:05]} 37. Nd4 {[%emt 0:00:20]} a6 {[%emt 0:00:59]} 38. a4 {[%emt 0:00:02]} Kf6 {[%emt 0:00:57]} 39. axb5 {[%emt 0:00:37]} axb5 {[%emt 0:00:01]} 40. Nxb5 {[%emt 0:00:08]} Rd1 {[%emt 0:00:33]} 41. Nc7 {[%emt 0:31:16]} Bd7 {[%emt 0:12:02]} 42. b5 {[%emt 0:00:00]} Rb1 {[%emt 0:03:20]} 43. Kxc4 {[%emt 0:00:00]} Rc1+ {[%emt 0:02:47]} 44. Rc3 {[%emt 0:00:00]} Rxc3+ {[%emt 0:01:36]} 45. Kxc3 {[%emt 0:00:00]} Ke5 {[%emt 0:01:59]} 46. b6 {[%emt 0:00:00]} Kd6 {[%emt 0:01:34]} 47. Kd4 {[%emt 0:00:00]} Kc6 {[%emt 0:02:32]} 48. Nd5 {[%emt 0:00:00]} Be6 {[%emt 0:01:54]} 49. Nf4 {[%emt 0:00:00]} Ba2 {[%emt 0:01:10]} 50. Ke5 {[%emt 0:00:00]} Kxb6 {[%emt 0:01:10]} 51. Kd6 {[%emt 0:00:00]} Bc4 {[%emt 0:01:32]} 52. g5 {[%emt 0:00:00]} Kb7 {[%emt 0:00:59]} 53. h4 {[%emt 0:00:00]} Kc8 {[%emt 0:00:27]} 54. Ke7 {[%emt 0:00:00]} Kc7 {[%emt 0:00:30]} 55. Nh3 {[%emt 0:00:00]} Be6 {[%emt 0:01:54]} 56. Nf2 {[%emt 0:00:00]} Kc6 {[%emt 0:00:55]} 57. Ne4 {[%emt 0:00:00]} Kd5 {[%emt 0:00:46]} 58. Nd6 {[%emt 0:00:00]} Bh3 {[%emt 0:02:16]} 59. Nxf7 {[%emt 0:00:00]} Ke4 {[%emt 0:00:16]} 60. Kf6 {[%emt 0:00:00]} Kf3 {[%emt 0:00:26]} 61. Kg7 {[%emt 0:00:00]} Bf5 {[%emt 0:00:27]} 62. Kxh7 {[%emt 0:00:00]} Kg3 {[%emt 0:00:10]} 63. Kg7 {[%emt 0:00:00]} Kxh4 {[%emt 0:00:39]} 64. Kf6 {[%emt 0:00:00]} Kh5 {[%emt 0:00:35]} 65. Nd8 {[%emt 0:00:25]} Bg4 {[%emt 0:00:40]} 66. Nc6 {[%emt 0:00:05]} Bf3 {[%emt 0:00:50]} 67. Ne5 {[%emt 0:00:48]} Be4 {[%emt 0:00:15]} 68. Nc4 {[%emt 0:00:21]} Bd3 {[%emt 0:00:26]} 69. Nd6 {[%emt 0:00:34]} Bc2 {[%emt 0:00:25]} 70. Nb5 {[%emt 0:00:11]} Bd3 {[%emt 0:00:19]} 71. Nd4 {[%emt 0:00:07]} Bb1 {[%emt 0:00:50]} 72. Ne6 {[%emt 0:00:13]} Bc2 {[%emt 0:00:16]} 73. Nf4+ {[%emt 0:00:06]} Kg4 {[%emt 0:00:49]} 74. Nxg6 {[%emt 0:00:03]} Bb1 {[%emt 0:00:32]} 75. Ne5+ {[%emt 0:00:16]} Kf4 {[%emt 0:00:18]} 76. Nd7 {[%emt 0:00:15]} Bc2 {[%emt 0:00:17]} 77. Nc5 {[%emt 0:00:08]} Bb1 {[%emt 0:00:50]} 78. Ne6+ {[%emt 0:00:16]} Kg4 {[%emt 0:00:00]} 79. Nd4 {[%emt 0:00:33]} Bd3 {[%emt 0:00:04]} 80. g6 {[%emt 0:01:07]} 1/2-1/2